[Event "*** Titled Tuesday Blitz"]
[Site "Chess.com"]
[Date "2020.04.21"]
[Round "3"]
[White "colegiodemadrid"]
[Black "DanielDardha2005"]
[Result "0-1"]
[WhiteElo "2313"]
[BlackElo "2564"]
[TimeControl "180+1"]
[EndTime "10:29:53 PDT"]
[Termination "DanielDardha2005 won by resignation"]

1. e4 {[%clk 0:03:00.9]} 1... c5 {[%clk 0:02:59]} 2. Nf3 {[%clk 0:02:59.6]} 2...
Nc6 {[%clk 0:02:58.9]} 3. d4 {[%clk 0:02:59.9]} 3... cxd4 {[%clk 0:02:59.8]} 4.
Nxd4 {[%clk 0:03:00.4]} 4... Nf6 {[%clk 0:02:58.6]} 5. Nc3 {[%clk 0:03:00.7]}
5... e5 {[%clk 0:02:58.2]} 6. Ndb5 {[%clk 0:03:01.2]} 6... d6 {[%clk 0:02:57.5]}
7. Bg5 {[%clk 0:03:01.7]} 7... a6 {[%clk 0:02:56.2]} 8. Na3 {[%clk 0:03:02.2]}
8... b5 {[%clk 0:02:55.7]} 9. Nd5 {[%clk 0:03:02.5]} 9... Be7 {[%clk 0:02:55]}
10. Bxf6 {[%clk 0:03:03]} 10... Bxf6 {[%clk 0:02:55.9]} 11. c3 {[%clk
0:03:03.2]} 11... Ne7 {[%clk 0:02:56.1]} 12. Nxf6+ {[%clk 0:03:00.5]} 12... gxf6
{[%clk 0:02:57]} 13. Bd3 {[%clk 0:03:00.6]} 13... Bb7 {[%clk 0:02:56.5]} 14. Nc2
{[%clk 0:02:59.6]} 14... d5 {[%clk 0:02:53.6]} 15. exd5 {[%clk 0:02:59.9]} 15...
Qxd5 {[%clk 0:02:54.4]} 16. Ne3 {[%clk 0:02:59.6]} 16... Qe6 {[%clk 0:02:55]}
17. Qe2 {[%clk 0:02:47.9]} 17... O-O-O {[%clk 0:02:53.2]} 18. a4 {[%clk
0:02:35.6]} 18... e4 {[%clk 0:02:51]} 19. Bc2 {[%clk 0:02:26.1]} 19... bxa4
{[%clk 0:02:35]} 20. Rxa4 {[%clk 0:02:22.7]} 20... f5 {[%clk 0:02:34.2]} 21. g3
{[%clk 0:02:03.4]} 21... Rd6 {[%clk 0:02:17]} 22. Nc4 {[%clk 0:01:26.7]} 22...
Rc6 {[%clk 0:02:06.6]} 23. Bb3 {[%clk 0:01:26.1]} 23... Qh6 {[%clk 0:01:55.8]}
24. O-O {[%clk 0:01:07.4]} 24... f4 {[%clk 0:01:43.5]} 25. Qxe4 {[%clk
0:01:00.6]} 25... Qxh2+ {[%clk 0:01:20.4]} 26. Kxh2 {[%clk 0:00:39.8]} 26...
Rh6+ {[%clk 0:01:19.7]} 27. Kg1 {[%clk 0:00:38.1]} 27... Bxe4 {[%clk 0:01:19.7]}
28. Nd6+ {[%clk 0:00:36.1]} 28... Rxd6 {[%clk 0:01:18.6]} 29. Rxe4 {[%clk
0:00:36.7]} 29... Ng6 {[%clk 0:01:11]} 30. Bxf7 {[%clk 0:00:36.7]} 30... Rf8
{[%clk 0:01:03.8]} 31. Bxg6 {[%clk 0:00:35.3]} 31... Rxg6 {[%clk 0:01:04.7]} 32.
Kg2 {[%clk 0:00:32.6]} 32... fxg3 {[%clk 0:00:58.5]} 33. fxg3 {[%clk 0:00:31.7]}
33... Rxg3+ {[%clk 0:00:50.2]} 34. Kxg3 {[%clk 0:00:31.7]} 34... Rxf1 {[%clk
0:00:51.1]} 35. Rb4 {[%clk 0:00:29.1]} 35... Kc7 {[%clk 0:00:47.9]} 36. Kh4
{[%clk 0:00:29.4]} 36... Kc6 {[%clk 0:00:43.7]} 37. Rc4+ {[%clk 0:00:28.1]}
37... Kb5 {[%clk 0:00:41.8]} 38. Rb4+ {[%clk 0:00:28]} 38... Kc5 {[%clk
0:00:41.5]} 39. Ra4 {[%clk 0:00:25]} 39... Rf6 {[%clk 0:00:39.3]} 40. b3 {[%clk
0:00:21.9]} 40... Rb6 {[%clk 0:00:38.4]} 41. Rc4+ {[%clk 0:00:20.2]} 41... Kd5
{[%clk 0:00:34]} 42. Rd4+ {[%clk 0:00:20.6]} 42... Ke5 {[%clk 0:00:34.5]} 43. b4
{[%clk 0:00:20.8]} 43... Rc6 {[%clk 0:00:34.4]} 44. Rd3 {[%clk 0:00:21]} 44...
Ke4 {[%clk 0:00:32.5]} 45. Rg3 {[%clk 0:00:20.4]} 45... Kd5 {[%clk 0:00:28.4]}
46. Kh5 {[%clk 0:00:17.7]} 46... Kc4 {[%clk 0:00:23.7]} 47. Rf3 {[%clk
0:00:16.5]} 47... Kb3 {[%clk 0:00:20.7]} 48. Rf7 {[%clk 0:00:15.7]} 48... Kxc3
{[%clk 0:00:18.5]} 49. Rxh7 {[%clk 0:00:16.1]} 49... Kxb4 {[%clk 0:00:18.5]} 50.
Kg4 {[%clk 0:00:16.5]} 50... Rf6 {[%clk 0:00:16]} 51. Rb7+ {[%clk 0:00:15.3]}
51... Ka4 {[%clk 0:00:13.4]} 52. Kg5 {[%clk 0:00:14.4]} 52... Rf2 {[%clk
0:00:11.2]} 53. Kg4 {[%clk 0:00:14.8]} 53... a5 {[%clk 0:00:11.4]} 54. Kg3
{[%clk 0:00:15.2]} 54... Rf6 {[%clk 0:00:11.3]} 55. Kg2 {[%clk 0:00:15.4]} 55...
Ka3 {[%clk 0:00:11.5]} 56. Kg3 {[%clk 0:00:15.5]} 56... a4 {[%clk 0:00:11.4]}
57. Kg2 {[%clk 0:00:15.9]} 57... Ka2 {[%clk 0:00:11.7]} 58. Kg3 {[%clk
0:00:16.2]} 58... a3 {[%clk 0:00:12.2]} 59. Kg2 {[%clk 0:00:16.5]} 59... Ka1
{[%clk 0:00:12.5]} 60. Kg1 {[%clk 0:00:15.7]} 60... a2 {[%clk 0:00:12.8]} 61.
Kg2 {[%clk 0:00:16.2]} 61... Rd6 {[%clk 0:00:13]} 62. Kf2 {[%clk 0:00:15.8]}
62... Rd1 {[%clk 0:00:13.3]} 63. Ke2 {[%clk 0:00:15.3]} 63... Rb1 {[%clk
0:00:13.6]} 64. Ra7 {[%clk 0:00:15.5]} 64... Kb2 {[%clk 0:00:13.9]} 65. Kd2
{[%clk 0:00:11.4]} 65... a1=Q {[%clk 0:00:11.1]} 66. Rb7+ {[%clk 0:00:11.4]}
66... Ka3 {[%clk 0:00:11.5]} 0-1

[Event "*** Titled Tuesday Blitz"]
[Site "Chess.com"]
[Date "2020.04.21"]
[Round "3"]
[White "GianmarcoVaR"]
[Black "mathapples"]
[Result "0-1"]
[WhiteElo "2553"]
[BlackElo "2338"]
[TimeControl "180+1"]
[EndTime "10:29:55 PDT"]
[Termination "mathapples won by checkmate"]

1. Nf3 {[%clk 0:03:00.9]} 1... d5 {[%clk 0:02:59.9]} 2. c4 {[%clk 0:03:00.1]}
2... c6 {[%clk 0:02:58.5]} 3. e3 {[%clk 0:03:00.3]} 3... Nf6 {[%clk 0:02:58.6]}
4. Nc3 {[%clk 0:02:59.6]} 4... e6 {[%clk 0:02:58.5]} 5. Qc2 {[%clk 0:02:58.6]}
5... Nbd7 {[%clk 0:02:58.2]} 6. b3 {[%clk 0:02:59]} 6... Bd6 {[%clk 0:02:57.6]}
7. Bb2 {[%clk 0:02:58.9]} 7... O-O {[%clk 0:02:57.2]} 8. Be2 {[%clk 0:02:57.1]}
8... e5 {[%clk 0:02:50]} 9. cxd5 {[%clk 0:02:57.2]} 9... cxd5 {[%clk 0:02:49.8]}
10. Nb5 {[%clk 0:02:56.6]} 10... Bb8 {[%clk 0:02:48.5]} 11. Ba3 {[%clk
0:02:55.5]} 11... a6 {[%clk 0:02:27.3]} 12. Nd6 {[%clk 0:02:55]} 12... Bxd6
{[%clk 0:02:18.4]} 13. Bxd6 {[%clk 0:02:55.9]} 13... Re8 {[%clk 0:02:18.2]} 14.
O-O {[%clk 0:01:53.7]} 14... e4 {[%clk 0:02:08.8]} 15. Nd4 {[%clk 0:01:53.8]}
15... Ne5 {[%clk 0:02:06.2]} 16. Qc7 {[%clk 0:01:53]} 16... Qxc7 {[%clk
0:01:57.6]} 17. Bxc7 {[%clk 0:01:53.4]} 17... Bg4 {[%clk 0:01:56.7]} 18. Bxe5
{[%clk 0:01:51.8]} 18... Bxe2 {[%clk 0:01:52.2]} 19. Nxe2 {[%clk 0:01:47.9]}
19... Rxe5 {[%clk 0:01:52]} 20. Rfc1 {[%clk 0:01:48.3]} 20... Re7 {[%clk
0:01:50.8]} 21. Rc5 {[%clk 0:01:46.7]} 21... Kf8 {[%clk 0:01:45.2]} 22. Rac1
{[%clk 0:01:46.9]} 22... Rd8 {[%clk 0:01:41.1]} 23. Rc8 {[%clk 0:01:45.4]} 23...
Ke8 {[%clk 0:01:39.3]} 24. Nd4 {[%clk 0:01:43.6]} 24... Rxc8 {[%clk 0:01:35.1]}
25. Rxc8+ {[%clk 0:01:42.9]} 25... Kd7 {[%clk 0:01:35.3]} 26. Rc3 {[%clk
0:01:37.1]} 26... Re8 {[%clk 0:01:34.7]} 27. Kf1 {[%clk 0:01:33.4]} 27... Rc8
{[%clk 0:01:34.4]} 28. Rxc8 {[%clk 0:01:33.3]} 28... Kxc8 {[%clk 0:01:34.1]} 29.
Nf5 {[%clk 0:01:33.9]} 29... g6 {[%clk 0:01:33.9]} 30. Nd6+ {[%clk 0:01:34.4]}
30... Kd7 {[%clk 0:01:19.9]} 31. Nxb7 {[%clk 0:01:31.9]} 31... Ng4 {[%clk
0:01:13.6]} 32. h3 {[%clk 0:01:24]} 32... Ne5 {[%clk 0:01:07.7]} 33. Nc5+ {[%clk
0:01:24.5]} 33... Kc6 {[%clk 0:01:07.3]} 34. Nxa6 {[%clk 0:01:24.8]} 34... Nd3
{[%clk 0:00:58.3]} 35. a3 {[%clk 0:00:32.7]} 35... Kb6 {[%clk 0:00:57.4]} 36.
Nb8 {[%clk 0:00:17.3]} 36... Kc7 {[%clk 0:00:57.2]} 37. Na6+ {[%clk 0:00:17.4]}
37... Kb6 {[%clk 0:00:57.1]} 38. Nb4 {[%clk 0:00:07.3]} 38... Nxb4 {[%clk
0:00:56.5]} 39. axb4 {[%clk 0:00:08.2]} 39... Kb5 {[%clk 0:00:56.8]} 40. f3
{[%clk 0:00:06.9]} 40... Kxb4 {[%clk 0:00:56.4]} 41. fxe4 {[%clk 0:00:06.5]}
41... dxe4 {[%clk 0:00:56.4]} 42. Ke2 {[%clk 0:00:05.4]} 42... Kxb3 {[%clk
0:00:56.2]} 43. d4 {[%clk 0:00:06]} 43... Kc4 {[%clk 0:00:39.2]} 44. Kf2 {[%clk
0:00:05.8]} 44... f5 {[%clk 0:00:38.2]} 45. h4 {[%clk 0:00:04.6]} 45... f4
{[%clk 0:00:37.1]} 46. Ke2 {[%clk 0:00:03]} 46... fxe3 {[%clk 0:00:31.6]} 47.
Kxe3 {[%clk 0:00:03.2]} 47... Kd5 {[%clk 0:00:32]} 48. g4 {[%clk 0:00:03.1]}
48... h6 {[%clk 0:00:32.2]} 49. g5 {[%clk 0:00:02.5]} 49... h5 {[%clk 0:00:32]}
50. Ke2 {[%clk 0:00:01.8]} 50... Kxd4 {[%clk 0:00:32.1]} 51. Kd2 {[%clk
0:00:02.7]} 51... Ke5 {[%clk 0:00:30.7]} 52. Ke2 {[%clk 0:00:03.6]} 52... Kf4
{[%clk 0:00:30.5]} 53. Kf2 {[%clk 0:00:04.5]} 53... Kg4 {[%clk 0:00:30.6]} 54.
Ke3 {[%clk 0:00:05.4]} 54... Kxh4 {[%clk 0:00:30.4]} 55. Kf4 {[%clk 0:00:06]}
55... e3 {[%clk 0:00:30]} 56. Kxe3 {[%clk 0:00:04.8]} 56... Kxg5 {[%clk
0:00:29.8]} 57. Kf3 {[%clk 0:00:05.7]} 57... Kh4 {[%clk 0:00:29.1]} 58. Kg2
{[%clk 0:00:06.6]} 58... Kg4 {[%clk 0:00:29.2]} 59. Kh2 {[%clk 0:00:06.9]} 59...
Kf3 {[%clk 0:00:28.9]} 60. Kh3 {[%clk 0:00:06.8]} 60... g5 {[%clk 0:00:28.9]}
61. Kh2 {[%clk 0:00:07.7]} 61... g4 {[%clk 0:00:29.2]} 62. Kh1 {[%clk
0:00:08.6]} 62... g3 {[%clk 0:00:28.9]} 63. Kg1 {[%clk 0:00:09.2]} 63... g2
{[%clk 0:00:28.8]} 64. Kh2 {[%clk 0:00:09.6]} 64... Kf2 {[%clk 0:00:29.2]} 65.
Kh3 {[%clk 0:00:10]} 65... g1=Q {[%clk 0:00:29.3]} 66. Kh4 {[%clk 0:00:10.2]}
66... Qg4# {[%clk 0:00:29.4]} 0-1

[Event "*** Titled Tuesday Blitz"]
[Site "Chess.com"]
[Date "2020.04.21"]
[Round "3"]
[White "alex_zapata"]
[Black "SaguriGuerra"]
[Result "0-1"]
[WhiteElo "2249"]
[BlackElo "2524"]
[TimeControl "180+1"]
[EndTime "10:29:58 PDT"]
[Termination "SaguriGuerra won by resignation"]

1. e4 {[%clk 0:03:00.9]} 1... e6 {[%clk 0:02:59.6]} 2. d4 {[%clk 0:03:00.2]}
2... d5 {[%clk 0:03:00.5]} 3. Nd2 {[%clk 0:02:59.8]} 3... Be7 {[%clk 0:03:00.2]}
4. Ngf3 {[%clk 0:02:59.7]} 4... Nf6 {[%clk 0:03:00.3]} 5. Bd3 {[%clk 0:02:59.2]}
5... c5 {[%clk 0:02:58.6]} 6. exd5 {[%clk 0:02:59.3]} 6... Qxd5 {[%clk
0:02:52.2]} 7. dxc5 {[%clk 0:02:59]} 7... Nbd7 {[%clk 0:02:47.6]} 8. Nb3 {[%clk
0:02:59]} 8... Nxc5 {[%clk 0:02:37.7]} 9. Nxc5 {[%clk 0:02:52]} 9... Qxc5 {[%clk
0:02:38.6]} 10. O-O {[%clk 0:02:51.5]} 10... O-O {[%clk 0:02:38.2]} 11. Be3
{[%clk 0:02:50.9]} 11... Qc7 {[%clk 0:02:31.8]} 12. c4 {[%clk 0:02:46.7]} 12...
e5 {[%clk 0:02:30.1]} 13. Qc2 {[%clk 0:02:42.1]} 13... Bg4 {[%clk 0:02:19.3]}
14. Ng5 {[%clk 0:02:41.3]} 14... h6 {[%clk 0:02:18.7]} 15. Ne4 {[%clk
0:02:41.3]} 15... Nxe4 {[%clk 0:02:16.5]} 16. Bxe4 {[%clk 0:02:42.2]} 16... Rac8
{[%clk 0:02:16.8]} 17. Rac1 {[%clk 0:02:36]} 17... Be6 {[%clk 0:02:16.7]} 18. b3
{[%clk 0:02:21.6]} 18... b6 {[%clk 0:02:15.3]} 19. Bf5 {[%clk 0:02:18.5]} 19...
Qc6 {[%clk 0:02:07.9]} 20. Rfd1 {[%clk 0:02:11.4]} 20... Rfd8 {[%clk 0:02:02.1]}
21. Bxe6 {[%clk 0:02:08.5]} 21... Qxe6 {[%clk 0:02:01.6]} 22. Rxd8+ {[%clk
0:02:04.8]} 22... Rxd8 {[%clk 0:02:01.4]} 23. Rd1 {[%clk 0:02:05.4]} 23... Rc8
{[%clk 0:01:53.7]} 24. Qe4 {[%clk 0:01:59.2]} 24... f5 {[%clk 0:01:52.5]} 25.
Qd5 {[%clk 0:01:57.8]} 25... Kf7 {[%clk 0:01:53]} 26. Qb7 {[%clk 0:01:34.2]}
26... f4 {[%clk 0:01:49.4]} 27. Bc1 {[%clk 0:01:32.8]} 27... Qc6 {[%clk
0:01:31.5]} 28. Qxc6 {[%clk 0:01:07.4]} 28... Rxc6 {[%clk 0:01:31.3]} 29. f3
{[%clk 0:01:07.6]} 29... Ke6 {[%clk 0:01:30.6]} 30. Kf1 {[%clk 0:01:07.7]} 30...
g5 {[%clk 0:01:23.3]} 31. Ke2 {[%clk 0:01:07.7]} 31... h5 {[%clk 0:01:23.7]} 32.
Bb2 {[%clk 0:01:06.7]} 32... a6 {[%clk 0:01:21.6]} 33. Rd5 {[%clk 0:01:06.6]}
33... Bf6 {[%clk 0:01:16.6]} 34. Bc3 {[%clk 0:01:04.4]} 34... g4 {[%clk
0:01:16]} 35. Kd3 {[%clk 0:01:04.1]} 35... Kf5 {[%clk 0:01:10.1]} 36. Bb4 {[%clk
0:00:53.4]} 36... h4 {[%clk 0:01:00.6]} 37. fxg4+ {[%clk 0:00:46.5]} 37... Kxg4
{[%clk 0:01:01.5]} 38. Ke4 {[%clk 0:00:45.6]} 38... b5 {[%clk 0:01:00.4]} 39. c5
{[%clk 0:00:44.6]} 39... h3 {[%clk 0:00:54.5]} 40. gxh3+ {[%clk 0:00:39.7]}
40... Kxh3 {[%clk 0:00:55.4]} 41. Rd2 {[%clk 0:00:35.2]} 41... a5 {[%clk
0:00:52.4]} 42. Bxa5 {[%clk 0:00:32.3]} 42... Rxc5 {[%clk 0:00:52.7]} 43. Bb6
{[%clk 0:00:28.8]} 43... Rc6 {[%clk 0:00:50]} 44. Ba7 {[%clk 0:00:22.2]} 44...
Bg7 {[%clk 0:00:43.3]} 45. Bg1 {[%clk 0:00:20.1]} 45... Rf6 {[%clk 0:00:38.3]}
46. Kf3 {[%clk 0:00:18.2]} 46... Re6 {[%clk 0:00:34.3]} 47. Re2 {[%clk
0:00:18.2]} 47... Kh4 {[%clk 0:00:32.9]} 48. a4 {[%clk 0:00:15.3]} 48... bxa4
{[%clk 0:00:33.8]} 49. bxa4 {[%clk 0:00:15.8]} 49... Kg5 {[%clk 0:00:34.5]} 50.
a5 {[%clk 0:00:15.9]} 50... Kf5 {[%clk 0:00:34.3]} 51. Re4 {[%clk 0:00:16.1]}
51... Rc6 {[%clk 0:00:32.8]} 52. Ra4 {[%clk 0:00:15.3]} 52... e4+ {[%clk
0:00:24.5]} 53. Ke2 {[%clk 0:00:11.6]} 53... f3+ {[%clk 0:00:22.5]} 54. Ke3
{[%clk 0:00:09.8]} 54... Bh6+ {[%clk 0:00:22.2]} 55. Kd4 {[%clk 0:00:09.3]}
55... Bf8 {[%clk 0:00:17.4]} 56. a6 {[%clk 0:00:05.5]} 56... Rc8 {[%clk
0:00:15]} 57. Ra5+ {[%clk 0:00:03.4]} 57... Kf4 {[%clk 0:00:14.6]} 58. Be3+
{[%clk 0:00:03.7]} 58... Kg4 {[%clk 0:00:14.4]} 59. Kxe4 {[%clk 0:00:04.2]}
59... Re8+ {[%clk 0:00:13.5]} 60. Kd3 {[%clk 0:00:04.9]} 60... Rd8+ {[%clk
0:00:13.2]} 61. Ke4 {[%clk 0:00:04.9]} 61... Bb4 {[%clk 0:00:14]} 62. Ra4 {[%clk
0:00:04.3]} 62... Kh4 {[%clk 0:00:14.9]} 63. Rxb4 {[%clk 0:00:03.6]} 63... Re8+
{[%clk 0:00:15.8]} 64. Kd3+ {[%clk 0:00:03.8]} 64... Kh3 {[%clk 0:00:16.5]} 65.
a7 {[%clk 0:00:03.8]} 65... Kg2 {[%clk 0:00:17.4]} 66. Rb8 {[%clk 0:00:03.2]}
66... f2 {[%clk 0:00:17.2]} 67. Rxe8 {[%clk 0:00:03]} 67... f1=Q+ {[%clk
0:00:16.9]} 68. Kd4 {[%clk 0:00:02.4]} 68... Qd1+ {[%clk 0:00:16.8]} 69. Ke4
{[%clk 0:00:03.1]} 69... Qa4+ {[%clk 0:00:16.5]} 70. Kd3 {[%clk 0:00:02.6]}
70... Qxe8 {[%clk 0:00:17.4]} 71. Kd2 {[%clk 0:00:03.1]} 71... Qa8 {[%clk
0:00:17.8]} 0-1

[Event "*** Titled Tuesday Blitz"]
[Site "Chess.com"]
[Date "2020.04.21"]
[Round "3"]
[White "aa175"]
[Black "nfds"]
[Result "1-0"]
[WhiteElo "2307"]
[BlackElo "2536"]
[TimeControl "180+1"]
[EndTime "10:29:59 PDT"]
[Termination "aa175 won on time"]

1. d4 {[%clk 0:03:00.9]} 1... Nf6 {[%clk 0:02:55]} 2. Bf4 {[%clk 0:03:01.3]}
2... c5 {[%clk 0:02:53.7]} 3. e3 {[%clk 0:03:01.4]} 3... e6 {[%clk 0:02:50.8]}
4. Nf3 {[%clk 0:03:01.1]} 4... d5 {[%clk 0:02:49.6]} 5. Nbd2 {[%clk 0:03:01.3]}
5... Nc6 {[%clk 0:02:49.1]} 6. c3 {[%clk 0:03:01.3]} 6... Be7 {[%clk 0:02:48]}
7. Bd3 {[%clk 0:03:01.1]} 7... O-O {[%clk 0:02:46.2]} 8. Ne5 {[%clk 0:02:59.9]}
8... Bd7 {[%clk 0:02:43.4]} 9. h4 {[%clk 0:02:59.8]} 9... Qb6 {[%clk 0:02:33.4]}
10. Rb1 {[%clk 0:02:57]} 10... cxd4 {[%clk 0:02:30.6]} 11. exd4 {[%clk
0:02:56.8]} 11... Rfc8 {[%clk 0:02:23.6]} 12. Qe2 {[%clk 0:02:35.4]} 12... Qa5
{[%clk 0:02:10.3]} 13. a3 {[%clk 0:02:33]} 13... a6 {[%clk 0:02:04.2]} 14. Ndf3
{[%clk 0:02:30.2]} 14... Qd8 {[%clk 0:01:51]} 15. Ng5 {[%clk 0:02:25.7]} 15...
Be8 {[%clk 0:01:42]} 16. Nh3 {[%clk 0:02:04.7]} 16... b5 {[%clk 0:01:32.3]} 17.
Ng5 {[%clk 0:01:59.1]} 17... Rab8 {[%clk 0:01:20.9]} 18. Bc2 {[%clk 0:01:55.8]}
18... Rb7 {[%clk 0:01:03]} 19. Qd3 {[%clk 0:01:52.2]} 19... h6 {[%clk
0:00:39.5]} 20. Ng4 {[%clk 0:00:52.6]} 20... a5 {[%clk 0:00:22.9]} 21. Rh3
{[%clk 0:00:19]} 21... b4 {[%clk 0:00:20]} 22. Rg3 {[%clk 0:00:14.2]} 22... Kf8
{[%clk 0:00:19.5]} 23. Nh7+ {[%clk 0:00:09.1]} 23... Nxh7 {[%clk 0:00:18.8]} 24.
Qxh7 {[%clk 0:00:10]} 24... Bxh4 {[%clk 0:00:16.6]} 25. Bxh6 {[%clk 0:00:02]}
25... f5 {[%clk 0:00:14.9]} 26. Qh8+ {[%clk 0:00:01.7]} 26... Ke7 {[%clk
0:00:14.4]} 27. Qxg7+ {[%clk 0:00:02.6]} 27... Kd6 {[%clk 0:00:14.1]} 28. Qxb7
{[%clk 0:00:02.8]} 28... Bxg3 {[%clk 0:00:13.6]} 29. Bf8+ {[%clk 0:00:02]} 29...
Ne7 {[%clk 0:00:12.8]} 30. Bxe7+ {[%clk 0:00:02.2]} 30... Qxe7 {[%clk
0:00:12.3]} 31. Qxc8 {[%clk 0:00:02.8]} 31... fxg4 {[%clk 0:00:11.5]} 32. Qc5+
{[%clk 0:00:02.7]} 32... Kd7 {[%clk 0:00:11.1]} 33. Ba4+ {[%clk 0:00:03.3]}
33... Kd8 {[%clk 0:00:10.7]} 34. Qxe7+ {[%clk 0:00:04.2]} 34... Kxe7 {[%clk
0:00:10.8]} 35. Bxe8 {[%clk 0:00:05.1]} 35... Bd6 {[%clk 0:00:09.2]} 36. Ba4
{[%clk 0:00:04.4]} 36... bxc3 {[%clk 0:00:09]} 37. bxc3 {[%clk 0:00:04.8]} 37...
Bxa3 {[%clk 0:00:09.9]} 38. Rb7+ {[%clk 0:00:05.3]} 38... Kf6 {[%clk 0:00:09.7]}
39. f3 {[%clk 0:00:04.7]} 39... Bd6 {[%clk 0:00:08.1]} 40. fxg4 {[%clk
0:00:04.4]} 40... Kg5 {[%clk 0:00:08.2]} 41. Rb6 {[%clk 0:00:04.3]} 41... Bg3+
{[%clk 0:00:07.6]} 42. Ke2 {[%clk 0:00:04.3]} 42... e5 {[%clk 0:00:08.2]} 43.
dxe5 {[%clk 0:00:04.2]} 43... Bxe5 {[%clk 0:00:08.2]} 44. Rb5 {[%clk 0:00:04.7]}
44... Bxc3 {[%clk 0:00:07.9]} 45. Rxd5+ {[%clk 0:00:03.5]} 45... Kxg4 {[%clk
0:00:08.2]} 46. Kd3 {[%clk 0:00:04.4]} 46... Bb4 {[%clk 0:00:08]} 47. Rd8 {[%clk
0:00:02.3]} 47... Kf5 {[%clk 0:00:07.6]} 48. Rg8 {[%clk 0:00:03.2]} 48... Kf6
{[%clk 0:00:07.6]} 49. Rg4 {[%clk 0:00:01.5]} 49... Be1 {[%clk 0:00:07.1]} 50.
Re4 {[%clk 0:00:02.4]} 50... Bg3 {[%clk 0:00:05.9]} 51. Re3 {[%clk 0:00:02.2]}
51... Bc7 {[%clk 0:00:05]} 52. Rf3+ {[%clk 0:00:03.1]} 52... Kg5 {[%clk
0:00:05]} 53. Bc2 {[%clk 0:00:03.6]} 53... Kg4 {[%clk 0:00:05.9]} 54. Kc4 {[%clk
0:00:03.4]} 54... Bd6 {[%clk 0:00:06.1]} 55. Kb5 {[%clk 0:00:03.2]} 55... Bb4
{[%clk 0:00:07]} 56. Rb3 {[%clk 0:00:02.7]} 56... Be1 {[%clk 0:00:06.8]} 57.
Bd1+ {[%clk 0:00:03.6]} 57... Kf4 {[%clk 0:00:06.4]} 58. Rf3+ {[%clk 0:00:03.8]}
58... Kg5 {[%clk 0:00:05.9]} 59. Bc2 {[%clk 0:00:04.7]} 59... Bb4 {[%clk
0:00:05.5]} 60. Ka4 {[%clk 0:00:04.5]} 60... Be1 {[%clk 0:00:05.2]} 61. Kb3
{[%clk 0:00:04.9]} 61... Kg4 {[%clk 0:00:05.1]} 62. Kc4 {[%clk 0:00:04.8]} 62...
Bd2 {[%clk 0:00:04.7]} 63. Kd5 {[%clk 0:00:05.7]} 63... Bb4 {[%clk 0:00:04.4]}
64. Ke5 {[%clk 0:00:05]} 64... Bd2 {[%clk 0:00:03.6]} 65. Rf8 {[%clk 0:00:04.4]}
65... Kg3 {[%clk 0:00:03.1]} 66. Rg8+ {[%clk 0:00:04.6]} 66... Kh4 {[%clk
0:00:02.8]} 67. g4 {[%clk 0:00:04.4]} 1-0